bitfinex/quotes_SOLUSD_20260125
["timestamp","ask_amount","ask_price","bid_price","bid_amount"]
[1769306675894,30.51179585,127.36,127.34,2.11417231]
[1769306676994,29.94179585,127.36,127.34,2.11417231]
[1769306680191,0.51179585,127.35,127.33,2.11417231]
[1769306680590,0.51179585,127.35,127.32,9.96826892]
[1769306682297,0.51179585,127.35,127.32,114.06826892]
[1769306683295,29.34179585,127.36,127.32,114.06826892]
[1769306683495,29.34179585,127.36,127.32,114.54134054]
[1769306683898,29.34179585,127.36,127.33,0.47307162]
[1769306685287,0.48679051,127.35,127.33,0.47307162]
[1769306690004,0.48679051,127.35,127.32,114.54134054]
[1769306698090,0.48679051,127.35,127.33,0.47307162]
[1769306698292,29.82858636,127.36,127.33,0.47307162]
[1769306699501,0.48679051,127.35,127.33,0.47307162]
[1769306701710,29.34179585,127.36,127.33,0.47307162]
[1769306702012,29.82858636,127.36,127.33,0.47307162]
[1769306702813,0.49181409,127.39,127.35,2.57770018]
[1769306704314,0.49181409,127.39,127.35,2.11417231]
[1769306704695,0.49181409,127.39,127.35,2.57770018]
[1769306706819,0.49181409,127.39,127.36,0.46352787]
[1769306707008,0.49181409,127.38,127.35,0.46352787]
[1769306707511,0.49181409,127.38,127.34,10.4306596]
[1769306708314,2.6059864,127.38,127.33,22.26352787]
[1769306708515,0.49181409,127.36,127.33,21.8]
[1769306709822,0.49181409,127.35,127.31,10.43040893]
[1769306719729,0.49181409,127.35,127.31,2.57571731]
[1769306719921,0.49181409,127.35,127.3,10.45674316]
[1769306721205,0.47337131,127.34,127.3,10.45674316]
[1769306721626,0.47337131,127.34,127.3,2.11218944]
[1769306721816,0.47337131,127.33,127.29,32.25739444]
[1769306723631,0.47337131,127.33,127.29,30.145205]
[1769306727425,2.11218944,127.33,127.29,30.145205]
[1769306727633,0.47337131,127.32,127.29,30.145205]
[1769306738441,0.47337131,127.32,127.29,32.25739444]
[1769306740847,0.47337131,127.32,127.29,10.45739444]
[1769306742726,2.11218944,127.35,127.29,10.45739444]
[1769306744327,2.11218944,127.35,127.3,2.58337914]
[1769306744526,2.11218944,127.35,127.3,0.4711897]
[1769306744734,0.45698022,127.34,127.3,0.4711897]
[1769306745849,0.45698022,127.34,127.3,8.32644841]
[1769306747651,0.45698022,127.34,127.3,0.4711897]
[1769306747949,0.45698022,127.34,127.3,2.58337914]
[1769306759367,0.45698022,127.36,127.34,0.4711897]
[1769306759571,0.45698022,127.36,127.34,2.58337914]
[1769306766383,0.49449984,127.38,127.35,2.11218944]
[1769306769081,0.49449984,127.38,127.34,2.58337914]
[1769306770883,0.49449984,127.38,127.34,2.58263074]
[1769306780993,7.84961162,127.4,127.34,2.58263074]
[1769306781293,2.11144104,127.39,127.34,2.58263074]
[1769306782994,0.46665519,127.38,127.34,2.58263074]
[1769306783194,2.57809623,127.38,127.34,2.58263074]
[1769306783696,0.46665519,127.38,127.34,2.58263074]
[1769306785198,0.46665519,127.38,127.34,0.4711897]
[1769306785396,0.46665519,127.38,127.34,2.58263074]
[1769306785799,2.57809623,127.38,127.34,0.4711897]
[1769306786400,0.46665519,127.37,127.34,0.4711897]
[1769306807728,0.47114799,127.36,127.34,0.4711897]
[1769306810832,2.58258903,127.37,127.34,0.4711897]
[1769306811223,0.47114799,127.37,127.34,0.4711897]
[1769306812735,0.47114799,127.36,127.34,0.4711897]
[1769306825959,0.24114799,127.36,127.34,0.4711897]
[1769306826149,2.11144104,127.37,127.34,0.4711897]
[1769306827847,2.42565495,127.37,127.34,0.4711897]
[1769306831145,0.31420085,127.36,127.32,48.06072532]
[1769306831347,2.42564189,127.34,127.32,39.72797709]
[1769306831534,2.11144104,127.34,127.32,39.72797709]
[1769306832153,2.11144104,127.34,127.32,40.22811516]
[1769306833031,2.1130222,127.34,127.32,40.22811516]
[1769306833453,2.1130222,127.34,127.32,39.72797709]
[1769306833953,2.1130222,127.34,127.32,40.22811516]
[1769306835154,2.1130222,127.35,127.32,40.22811516]
[1769306843063,2.1130222,127.33,127.31,0.50013807]
[1769306843256,2.1130222,127.33,127.3,0.50013807]
[1769306852269,2.1130222,127.35,127.31,0.50013807]
[1769306857974,5.34408856,127.36,127.31,0.50013807]
[1769306858278,2.1130222,127.35,127.32,0.50013807]
[1769306858878,1.6130222,127.35,127.32,0.50013807]
[1769306870091,2.1130222,127.36,127.32,0.50013807]
[1769306871589,2.1130222,127.35,127.32,0.50013807]
[1769306872687,2.1130222,127.34,127.3,0.50013807]
[1769306872895,2.1130222,127.33,127.3,0.50013807]
[1769306875284,2.1130222,127.34,127.3,0.50013807]
[1769306878298,7.85242232,127.35,127.29,0.50013807]
[1769306878299,2.1130222,127.33,127.29,0.50013807]
[1769306881386,2.1130222,127.32,127.29,0.50013807]
[1769306884098,9.96730113,127.32,127.29,0.50013807]
[1769306884597,2.1130222,127.32,127.29,0.50013807]
[1769306884791,7.85299198,127.34,127.29,0.50013807]
[1769306884994,2.1130222,127.33,127.29,0.50013807]
[1769306885696,2.1130222,127.32,127.29,0.50013807]
[1769306894916,2.11400999,127.32,127.29,0.50013807]
[1769306896788,2.11400999,127.31,127.29,0.50013807]
[1769306897223,23.56915583,127.34,127.29,0.50013807]
[1769306897419,9.96619694,127.36,127.32,0.50013807]
[1769306897602,2.11400999,127.35,127.32,0.50013807]
[1769306897800,2.11400999,127.34,127.32,0.50013807]
[1769306897993,2.11400999,127.35,127.32,0.50013807]
[1769306919639,2.11400999,127.34,127.32,0.50013807]
[1769306922425,7.85218695,127.36,127.32,0.50013807]
[1769306922627,2.11400999,127.34,127.32,0.50013807]
[1769306924747,2.11400999,127.35,127.32,0.50013807]
[1769306925045,2.11400999,127.34,127.3,0.50013807]
[1769306927439,7.853012,127.34,127.3,0.50013807]
[1769306927649,2.11400999,127.33,127.3,0.50013807]
[1769306928056,2.11400999,127.32,127.3,0.50013807]
[1769306934264,2.11400999,127.31,127.28,0.50013807]
[1769306934462,2.11400999,127.3,127.27,25.2986794]
[1769306935164,2.11400999,127.3,127.28,0.50013807]
[1769306956902,2.1144538,127.3,127.28,0.50013807]
[1769306957608,7.85388901,127.33,127.28,0.50013807]
[1769306957786,2.1144538,127.32,127.28,0.50013807]
[1769306958793,9.96834281,127.33,127.28,2.61459187]
[1769306959110,9.96834281,127.33,127.29,0.50013807]
[1769306980122,2.1144538,127.32,127.29,0.50013807]
[1769306982532,2.1144538,127.31,127.27,24.79854133]
[1769306982833,2.1144538,127.3,127.27,25.2986794]
[1769306983328,2.1144538,127.3,127.28,0.50013807]
[1769306986337,7.45854236,127.31,127.28,0.50013807]
[1769306989239,7.45854236,127.31,127.27,25.2986794]
[1769306989420,2.1144538,127.3,127.27,25.2986794]
[1769306993744,9.96993408,127.3,127.27,25.2986794]
[1769306998828,9.96993408,127.3,127.27,0.50013807]
[1769306999650,2.1144538,127.28,127.25,0.50013807]
[1769307001445,9.97254868,127.26,127.23,0.50013807]
[1769307003455,2.1144538,127.24,127.22,0.50013807]
[1769307005453,2.1144538,127.24,127.21,0.2]
[1769307007450,2.1144538,127.24,127.22,0.46959812]
[1769307007751,2.59891277,127.24,127.21,0.2]
[1769307008058,0.48445897,127.23,127.21,0.2]
[1769307009554,0.48445897,127.23,127.21,0.66959812]
[1769307012536,2.60176285,127.24,127.21,0.66959812]
[1769307013861,0.48730905,127.24,127.21,0.66959812]
[1769307015763,2.60176285,127.24,127.21,0.66959812]
[1769307016262,2.1144538,127.24,127.21,0.66959812]
[1769307016553,0.48730905,127.23,127.21,0.2]
[1769307016759,2.60176285,127.25,127.22,0.48155303]
[1769307016949,0.48730905,127.24,127.22,0.48155303]
[1769307017857,2.60353542,127.24,127.22,0.48155303]
[1769307020962,0.48730905,127.24,127.22,0.48155303]
[1769307022971,2.60353542,127.25,127.22,0.48155303]
[1769307024065,0.48730905,127.24,127.21,0.68155303]
[1769307024258,15.80521245,127.27,127.23,0.48155303]
[1769307025169,0.48730905,127.26,127.23,0.48155303]
[1769307026257,18.31856032,127.28,127.23,2.11622637]
[1769307026565,18.31856032,127.28,127.24,0.48155303]
[1769307026566,0.48730905,127.27,127.24,0.48155303]
[1769307026944,15.31716866,127.28,127.24,0.48155303]
[1769307027153,15.80447771,127.28,127.24,0.48155303]
[1769307028474,0.48730905,127.27,127.24,0.48155303]
[1769307029971,2.60353542,127.27,127.24,0.48155303]
[1769307032985,2.11622637,127.26,127.24,0.48155303]
[1769307034084,2.59293203,127.26,127.22,0.47452527]
[1769307037379,0.47670566,127.26,127.22,0.47452527]
[1769307044890,0.47670566,127.26,127.21,10.15162064]
[1769307046887,0.47670566,127.26,127.22,0.47452527]
[1769307051900,0.47670566,127.26,127.23,0.47452527]
[1769307055509,0.47670566,127.26,127.24,0.47452527]
[1769307059897,0.47670566,127.26,127.23,0.47452527]
[1769307071019,0.53911198,127.27,127.23,0.47452527]
[1769307089837,15.31637659,127.28,127.23,0.47452527]
[1769307090030,0.56051979,127.27,127.24,0.54363165]
[1769307093348,2.6758578,127.27,127.24,0.54363165]
[1769307100356,2.11533801,127.27,127.24,0.54363165]
[1769307100649,0.54544779,127.26,127.24,0.54363165]
[1769307102154,2.6607858,127.27,127.24,0.54363165]
[1769307105858,0.54544779,127.26,127.24,0.54363165]
[1769307118655,0.54544779,127.27,127.24,0.54363165]
[1769307122772,0.55796368,127.28,127.25,0.54214181]
[1769307122946,0.55796368,127.29,127.25,0.54214181]
[1769307126259,2.67330169,127.29,127.25,0.54214181]
[1769307130473,0.55796368,127.29,127.25,0.54214181]
[1769307133551,2.67330169,127.29,127.25,0.54214181]
[1769307136179,0.55321551,127.28,127.25,0.54214181]
[1769307165010,0.55321551,127.28,127.24,2.71816352]
[1769307165206,0.55344455,127.27,127.24,0.60352035]
[1769307166206,0.55344455,127.26,127.23,24.17219356]
[1769307166420,0.55344455,127.25,127.23,24.17219356]
[1769307181350,0.55344455,127.24,127.23,24.17219356]
[1769307184728,0.55344455,127.24,127.21,0.17452527]
[1769307185430,0.55344455,127.24,127.21,0.76590492]
[1769307187430,2.567979,127.23,127.21,0.17452527]
[1769307202935,2.57005751,127.23,127.21,0.17452527]
[1769307204253,3.1447777,127.25,127.23,0.57944017]
[1769307204534,0.61113911,127.27,127.23,2.11672168]
[1769307205527,0.61113911,127.27,127.23,9.97638936]
[1769307206557,0.61113911,127.27,127.24,0.57944017]
[1769307210650,0.59705932,127.29,127.25,0.63052991]
[1769307210839,0.59705932,127.29,127.25,2.74725159]
[1769307212021,0.59705932,127.29,127.25,0.63052991]
[1769307212221,0.59705932,127.28,127.25,0.63052991]
[1769307229930,0.60991233,127.29,127.26,0.65469484]
[1769307230642,2.72663401,127.29,127.26,0.65469484]
[1769307240665,0.60991233,127.29,127.26,0.65469484]
[1769307248467,2.78389865,127.3,127.26,0.65469484]
[1769307248660,0.66717697,127.31,127.27,2.79983922]
[1769307248862,0.66717697,127.31,127.28,0.68311754]
[1769307250185,2.78389865,127.31,127.28,0.68311754]
[1769307250369,0.66717697,127.3,127.28,0.68311754]
[1769307254992,2.78389865,127.3,127.27,0.67387908]
[1769307258080,0.66717697,127.3,127.27,0.67387908]
[1769307258396,2.8129825,127.28,127.26,0.67387908]
[1769307258694,0.69626082,127.28,127.25,0.67387908]
[1769307270498,2.81098186,127.29,127.25,0.67387908]
[1769307270675,0.69626082,127.29,127.26,0.67387908]
[1769307279001,0.69701098,127.28,127.24,9.97353383]
[1769307279587,2.81173202,127.28,127.25,0.72442342]
[1769307280490,0.69701098,127.27,127.25,0.72442342]
[1769307282011,0.69701098,127.27,127.24,0.72442342]
[1769307284605,0.69701098,127.26,127.23,8.58371175]
[1769307287808,0.69701098,127.26,127.24,0.72442342]
[1769307292690,0.69701098,127.27,127.24,0.72442342]
[1769307294512,0.69701098,127.28,127.25,0.72442342]
[1769307298496,0.69701098,127.28,127.26,0.72442342]
[1769307303219,0.69701098,127.28,127.25,0.76134325]
[1769307305113,0.69701098,127.28,127.24,2.87606429]
[1769307305317,0.75767919,127.27,127.23,2.87606429]
[1769307305699,0.75767919,127.27,127.24,0.76134325]
[1769307323036,0.74755428,127.26,127.23,0.77431098]
[1769307323238,0.74755428,127.24,127.21,105.04883625]
[1769307323536,0.74755428,127.23,127.21,0.94883625]
[1769307323737,0.74755428,127.23,127.21,0.17452527]
[1769307323908,2.11472104,127.23,127.21,0.17452527]
[1769307324110,0.74755428,127.22,127.21,0.17452527]
[1769307328735,0.74755428,127.22,127.19,0.97431098]
[1769307328736,0.74755428,127.21,127.19,0.2]
[1769307346467,0.76044571,127.2,127.19,0.2]
[1769307347557,2.87709788,127.2,127.19,0.2]
[1769307347932,0.76044571,127.2,127.19,0.2]
[1769307361488,2.87709788,127.2,127.19,0.2]
[1769307361699,2.87709788,127.19,127.18,0.2]
[1769307361863,2.87709788,127.19,127.17,0.2]
[1769307362591,0.76044571,127.18,127.17,0.2]
[1769307362797,2.87709788,127.18,127.17,0.2]
[1769307366373,2.86598303,127.17,127.16,0.2]
[1769307366873,0.74933086,127.16,127.15,0.2]
[1769307367069,0.74933086,127.15,127.13,0.80822953]
[1769307367269,2.86598303,127.16,127.13,0.80822953]
[1769307375291,0.76027125,127.15,127.12,0.95671494]
[1769307375482,2.87692342,127.15,127.12,0.95671494]
[1769307375684,2.87692342,127.15,127.13,0.75671494]
[1769307376391,2.11665217,127.15,127.13,0.75671494]
[1769307377776,7.86287152,127.18,127.15,27.12307658]
[1769307377980,2.11665217,127.16,127.13,0.75671494]
[1769307378174,2.11665217,127.15,127.13,0.75671494]
[1769307378492,2.11665217,127.15,127.12,0.95671494]
[1769307379295,2.11665217,127.14,127.12,0.2]
[1769307380301,2.11665217,127.14,127.12,0.95671494]
[1769307381274,2.47177988,127.15,127.12,0.95671494]
[1769307384901,2.47466499,127.15,127.12,0.95671494]
[1769307385606,0.37481576,127.14,127.12,0.2]
[1769307385908,2.49435304,127.14,127.12,0.2]
[1769307386583,2.11953728,127.13,127.12,0.2]
[1769307386993,2.49435304,127.14,127.12,0.2]
[1769307389884,2.11953728,127.14,127.12,0.95671494]
[1769307390202,2.50674504,127.15,127.12,0.95671494]
[1769307396727,2.11953728,127.14,127.12,0.95671494]
[1769307408136,2.56081113,127.14,127.12,0.2]
[1769307418137,2.56081113,127.14,127.11,0.80427018]
[1769307418138,2.11953728,127.13,127.11,0.80427018]
[1769307418337,2.11953728,127.13,127.1,0.2]
[1769307418338,0.46394323,127.12,127.1,0.2]
[1769307418529,2.58348051,127.12,127.1,0.2]
[1769307418839,2.11953728,127.12,127.1,1.00427018]
[1769307429847,0.46394323,127.13,127.1,1.00427018]
[1769307429848,2.58348051,127.13,127.1,1.00427018]
[1769307430347,2.60933388,127.12,127.1,0.2]
[1769307433252,0.49698954,127.11,127.09,0.2]
[1769307436244,0.30217732,127.1,127.08,0.2]
[1769307436749,2.4217146,127.11,127.08,1.06106262]
[1769307436946,2.4217146,127.1,127.08,0.2]
[1769307437265,0.10432715,127.08,127.06,0.2]
[1769307437463,2.22386443,127.09,127.06,1.06106262]
[1769307444167,0.10432715,127.09,127.06,1.06106262]
[1769307445278,2.22386443,127.09,127.06,1.06106262]
[1769307446868,2.22563674,127.09,127.06,1.06106262]
[1769307462677,0.16282027,127.09,127.06,1.06106262]
[1769307462852,2.28412986,127.09,127.06,1.06106262]
[1769307474781,0.18443466,127.08,127.06,0.2]
[1769307475382,2.30741686,127.09,127.06,1.10998177]
[1769307476694,0.18610727,127.09,127.06,1.10998177]
[1769307488400,2.30741686,127.09,127.06,1.10998177]
[1769307488996,0.20892198,127.08,127.06,0.2]
[1769307489200,2.33023157,127.07,127.05,0.2]
[1769307489499,2.12130959,127.08,127.05,1.15075562]
[1769307494104,2.12130959,127.07,127.05,1.15075562]
[1769307504312,2.12130959,127.09,127.05,1.15075562]
[1769307504521,5.3801939,127.1,127.06,0.95075562]
[1769307504522,2.15741493,127.1,127.06,0.95075562]
[1769307508925,2.15726149,127.1,127.06,0.95075562]
[1769307509921,0.0436089,127.13,127.09,0.95075562]
[1769307510218,2.16476505,127.13,127.09,0.55757444]
[1769307510724,0.0436089,127.13,127.09,0.55757444]
[1769307511746,0.0436089,127.13,127.09,2.12115615]
[1769307512228,0.0436089,127.13,127.1,0.93115987]
[1769307515143,0.0436089,127.13,127.1,3.05231602]
[1769307519327,0.46032817,127.14,127.11,0.9484886]
[1769307532135,2.58148432,127.14,127.11,0.9484886]
[1769307533740,0.46032817,127.14,127.11,0.9484886]
[1769307542341,2.58148432,127.14,127.11,0.9484886]
[1769307545648,0.50154922,127.16,127.11,0.9484886]
[1769307545845,2.12115615,127.16,127.12,0.90674344]
[1769307546144,0.50270376,127.16,127.12,0.90674344]
[1769307548244,2.62385991,127.16,127.12,0.90674344]
[1769307568927,2.62180583,127.16,127.12,0.90674344]
[1769307596698,0.50270376,127.16,127.12,0.90674344]
[1769307599801,2.66803099,127.19,127.13,2.11910207]
[1769307599967,0.54892892,127.19,127.15,0.95044386]
[1769307600174,0.54892892,127.19,127.16,0.95044386]
[1769307601069,2.66919595,127.2,127.16,0.95044386]
[1769307601273,0.55009388,127.19,127.16,0.95044386]
[1769307602781,2.67034507,127.2,127.16,0.95044386]
[1769307604303,0.55236982,127.19,127.16,0.95044386]
[1769307610802,2.67147189,127.19,127.16,0.95044386]
[1769307611227,2.67521826,127.18,127.15,0.96732182]
[1769307611396,2.67521826,127.17,127.14,0.96732182]
[1769307611707,2.11910207,127.16,127.14,0.96732182]
[1769307612081,2.67623619,127.16,127.13,0.97233686]
[1769307612289,2.67623619,127.15,127.11,0.97233686]
[1769307619714,0.55713412,127.15,127.12,0.97233686]
[1769307622613,2.67623619,127.15,127.12,0.97233686]
[1769307630928,2.67650196,127.15,127.12,0.97233686]
[1769307642115,0.56989159,127.14,127.11,1.01362657]
[1769307642319,2.68925943,127.14,127.11,1.01362657]
[1769307643822,2.68996802,127.13,127.1,1.01362657]
[1769307657246,2.69385085,127.14,127.1,1.01362657]
[1769307657446,0.57448301,127.14,127.11,1.01362657]
[1769307658249,0.57469975,127.16,127.11,1.01362657]
[1769307658544,2.69406759,127.16,127.12,1.01362657]
[1769307659043,0.57490934,127.15,127.12,1.01362657]
[1769307663630,2.11936784,127.16,127.12,1.01362657]
[1769307666157,2.69589069,127.16,127.12,1.01362657]
[1769307667856,2.11936784,127.16,127.12,1.01362657]
[1769307668455,2.69628136,127.16,127.12,1.01362657]
[1769307675681,2.11936784,127.17,127.13,1.02561807]
[1769307676584,2.69786675,127.17,127.13,1.02561807]
[1769307690898,2.69724637,127.17,127.13,1.02561807]
[1769307698102,2.11874746,127.16,127.13,1.02561807]
[1769307698289,2.69724637,127.17,127.13,1.02561807]
[1769307703715,10.56084791,127.17,127.13,1.02561807]
[1769307705112,2.11874746,127.16,127.13,1.02561807]
[1769307711505,10.56084791,127.17,127.13,1.02561807]
[1769307716128,9.982349,127.17,127.13,1.02561807]
[1769307716416,0.57190438,127.16,127.13,1.02561807]
[1769307726736,2.69065184,127.16,127.13,1.02561807]
[1769307730041,0.55056528,127.13,127.1,0.98307504]
[1769307730347,2.66931274,127.13,127.1,0.98307504]
[1769307730647,2.11874746,127.12,127.1,0.98307504]
[1769307732841,2.66931274,127.13,127.1,0.98307504]
[1769307733452,2.11874746,127.12,127.1,0.98307504]
[1769307733658,2.66931274,127.13,127.1,0.98307504]
[1769307746268,10.51425824,127.15,127.1,3.1018225]
[1769307746474,2.64922212,127.15,127.11,0.93783922]
[1769307751379,2.11874746,127.14,127.11,0.93783922]
[1769307752885,2.11976682,127.14,127.11,0.93783922]
[1769307760594,2.65024148,127.15,127.11,0.93783922]
[1769307769689,2.11976682,127.14,127.11,0.93783922]
[1769307782894,2.61726571,127.14,127.11,0.93783922]
[1769307784703,0.49749889,127.14,127.11,0.93783922]
[1769307808927,0.48150348,127.16,127.11,0.93783922]
[1769307809106,0.48150348,127.16,127.13,0.94425847]
[1769307809315,2.11976682,127.17,127.13,0.94425847]
[1769307809316,2.60076534,127.17,127.13,0.94425847]
[1769307810119,7.9443529,127.18,127.14,0.94425847]
[1769307810326,2.60026434,127.18,127.14,0.94425847]
[1769307812925,2.59907873,127.18,127.14,0.94425847]
[1769307824837,2.11858121,127.17,127.14,0.94425847]
[1769307832222,2.59907873,127.18,127.15,0.90145404]
[1769307833950,0.48049752,127.18,127.15,0.90145404]
[1769307834865,2.58568063,127.19,127.15,0.90145404]
[1769307837158,0.46709942,127.19,127.16,0.90145404]
[1769307839283,10.4434016,127.2,127.16,0.90145404]
[1769307849568,2.11858121,127.19,127.16,0.90145404]
[1769307849773,10.4434016,127.2,127.16,0.90145404]
[1769307864090,10.36477288,127.2,127.16,0.89988841]
[1769307867285,9.90187759,127.2,127.16,0.89988841]
[1769307867986,10.34399755,127.2,127.16,0.89988841]
[1769307874892,10.34323646,127.2,127.16,0.89988841]
[1769307902112,8.22541634,127.2,127.16,0.89988841]
[1769307902905,10.34323646,127.2,127.16,0.89988841]
[1769307906017,8.22541634,127.2,127.16,0.89988841]
[1769307918826,7.86573444,127.19,127.16,0.89988841]
[1769307934745,7.86573444,127.19,127.17,0.88344262]
[1769307934947,0.41404788,127.21,127.17,0.88344262]
[1769307935131,16.14551676,127.21,127.17,0.88344262]
[1769307935327,0.41404788,127.21,127.17,0.88344262]
[1769307936341,24.00544488,127.21,127.17,0.88344262]
[1769307938949,0.41404788,127.21,127.17,0.88344262]
[1769307940746,2.53133396,127.21,127.17,0.88344262]
[1769307941753,22.18001206,127.21,127.17,0.88344262]
[1769307946656,21.76596418,127.21,127.17,0.88344262]
[1769307946950,2.11728608,127.21,127.17,0.88344262]
[1769307947332,2.52827773,127.21,127.17,0.88344262]
[1769307950453,2.52827773,127.21,127.17,3.0007287]
[1769307950654,2.52827773,127.21,127.18,0.88344262]
[1769307951850,0.41099165,127.21,127.18,0.88344262]
[1769307952056,32.25403142,127.22,127.18,0.88344262]
[1769307977675,0.40513282,127.21,127.18,0.88344262]
[1769307980577,32.24858569,127.22,127.18,0.88344262]
[1769307984780,0.40411995,127.21,127.18,0.88344262]
[1769307989486,32.24733394,127.22,127.18,0.88344262]
[1769307989982,0.40343269,127.21,127.18,0.88344262]
[1769307997690,2.52082497,127.21,127.18,0.88344262]
[1769308010224,0.40343269,127.21,127.18,0.88344262]
[1769308018318,0.40003428,127.19,127.17,0.95098389]
[1769308018519,2.51742656,127.19,127.17,0.95098389]
[1769308019994,0.40003428,127.19,127.17,0.95098389]
[1769308027015,2.51661194,127.2,127.17,0.95098389]
[1769308028224,10.37763395,127.2,127.17,0.95098389]
[1769308038533,2.51661194,127.2,127.17,0.95098389]
[1769308050152,2.51661194,127.2,127.17,0.70490241]
[1769308058875,2.51686086,127.2,127.17,0.70490241]
[1769308060477,0.39921966,127.2,127.17,0.70490241]
[1769308071889,2.51686086,127.2,127.17,0.70490241]
[1769308093387,0.39921966,127.2,127.17,0.70490241]
[1769308094509,2.51686086,127.2,127.17,0.70490241]
[1769308099203,10.37788287,127.2,127.17,0.70490241]
[1769308103118,2.75499678,127.19,127.16,0.86427135]
[1769308103298,13.13287965,127.19,127.16,0.86427135]
[1769308107918,2.1176412,127.18,127.16,0.86427135]
[1769308111124,13.13287965,127.19,127.16,0.86427135]
[1769308120936,13.13335184,127.19,127.16,0.86427135]
[1769308127638,0.62952152,127.18,127.16,0.86427135]
[1769308131147,0.62952152,127.18,127.14,0.90368553]
[1769308131438,2.7466282,127.15,127.12,0.90368553]
[1769308132221,12.49599626,127.14,127.12,0.90368553]
[1769308138654,14.61410965,127.14,127.12,0.90368553]
[1769308139024,2.11811339,127.14,127.12,0.90368553]
[1769308139222,10.61290296,127.13,127.1,0.90368553]
[1769308139453,2.11811339,127.12,127.1,0.90368553]
[1769308140050,8.49478957,127.11,127.1,0.90368553]
[1769308145044,8.49478957,127.11,127.08,28.43588732]
[1769308145045,0.62537112,127.1,127.08,28.43588732]
[1769308145254,11.23806781,127.11,127.08,28.43588732]
[1769308145557,2.74327824,127.11,127.08,28.43588732]
[1769308145758,19.66241952,127.1,127.08,28.43588732]
[1769308146471,2.74327824,127.11,127.08,28.43588732]
[1769308147036,22.40569776,127.11,127.08,28.43588732]
[1769308149467,22.40569776,127.11,127.09,0.92376983]
[1769308153667,21.78053291,127.11,127.09,0.92376983]
[1769308159072,2.11811339,127.11,127.09,0.92376983]
[1769308164275,2.7396418,127.13,127.09,0.92376983]
[1769308180893,2.74186446,127.13,127.09,0.92376983]
[1769308181996,2.12033605,127.12,127.09,0.92376983]
[1769308182369,2.74186446,127.13,127.09,0.92376983]
[1769308198822,2.12033605,127.12,127.09,0.92376983]
[1769308210717,2.74186446,127.13,127.09,0.92376983]
[1769308215716,7.86619542,127.17,127.09,0.92376983]
[1769308215900,0.61490538,127.15,127.11,0.92004928]
[1769308216095,0.61490538,127.15,127.12,0.92004928]
[1769308217316,2.73506001,127.16,127.12,0.92004928]
[1769308219722,8.47742016,127.18,127.15,0.92004928]
[1769308219923,2.73488469,127.18,127.15,0.92004928]
[1769308224535,2.7344638,127.17,127.14,0.92004928]
[1769308225631,0.61404222,127.16,127.13,0.92004928]
[1769308225838,2.73437827,127.16,127.13,0.92004928]
[1769308232742,0.61404222,127.16,127.13,0.92004928]
[1769308235626,0.6132121,127.17,127.14,0.84937864]
[1769308240043,2.73327363,127.18,127.15,0.84937864]
[1769308240622,0.61293758,127.18,127.15,0.84937864]
[1769308243550,2.73114997,127.18,127.15,0.84937864]
[1769308244355,0.61293758,127.18,127.15,0.84937864]
[1769308245048,7.86254996,127.19,127.15,0.84937864]
[1769308245248,9.98076235,127.19,127.16,0.84937864]
[1769308247044,2.11821239,127.19,127.16,0.84937864]
[1769308252674,10.59253254,127.2,127.16,0.84937864]
[1769308259766,2.72986563,127.19,127.16,0.84937864]
[1769308301907,0.61165324,127.19,127.16,0.84937864]
[1769308306714,10.58916081,127.2,127.16,0.84937864]
[1769308307317,0.60947452,127.19,127.16,0.84937864]
[1769308315020,8.46595126,127.2,127.16,0.84937864]
[1769308315206,10.58382056,127.2,127.16,0.84937864]
[1769308316620,13.80752075,127.21,127.16,0.84937864]
[1769308316811,13.80752075,127.21,127.17,0.84862075]
[1769308317313,15.92539005,127.21,127.17,0.84862075]
[1769308320025,10.58130149,127.21,127.17,0.84862075]
[1769308322623,0.60214858,127.21,127.17,0.84862075]
[1769308322802,0.60214858,127.21,127.18,0.91377389]
[1769308323119,10.07851162,127.22,127.19,0.91377389]
[1769308323120,0.1,127.22,127.19,0.91377389]
[1769308323424,0.9952054,127.22,127.18,2.1178693]
[1769308324300,0.9952054,127.22,127.17,2.1178693]
[1769308325222,0.9952054,127.22,127.18,0.91377389]
[1769308326329,3.1130747,127.22,127.18,0.91377389]
[1769308328419,0.9952054,127.22,127.19,0.91377389]
[1769308332643,3.1130747,127.22,127.19,0.91377389]
[1769308338740,0.1,127.22,127.19,0.91377389]
[1769308338923,0.1,127.22,127.2,0.91906192]
[1769308346449,18.7539634,127.24,127.19,2.1178693]
[1769308346655,7.86345226,127.24,127.2,0.91906192]
[1769308346955,2.1178693,127.24,127.22,0.91906192]
[1769308347328,3.04615146,127.24,127.22,0.75155002]
[1769308347533,3.04615146,127.24,127.22,0.09461339]
[1769308347725,3.04615146,127.24,127.22,1e-08]
[1769308348650,3.04615146,127.24,127.19,9.98005521]
[1769308350655,0.92828216,127.24,127.21,0.91906192]
[1769308355664,0.81828216,127.24,127.21,0.87875842]
[1769308384401,0.94512373,127.22,127.19,0.96523019]
[1769308389012,0.94512373,127.22,127.18,0.96523019]
[1769308389184,0.94512373,127.22,127.18,2.11609078]
[1769308389382,0.94512373,127.22,127.19,0.96523019]
[1769308401414,0.94512373,127.22,127.18,3.04593871]